bitfinex/quotes_BTCUSD_20230901
["timestamp","ask_amount","ask_price","bid_price","bid_amount"]
[1693548594911,3.77918493,26065.0,26064.0,0.21869815]
[1693548595127,3.77900493,26065.0,26064.0,0.21869815]
[1693548595332,3.78056493,26065.0,26064.0,0.21869815]
[1693548595530,3.78044493,26065.0,26064.0,0.21869815]
[1693548595764,3.77996493,26065.0,26064.0,0.21869815]
[1693548595959,3.78002493,26065.0,26064.0,0.21869815]
[1693548596162,3.77744493,26065.0,26064.0,0.21869815]
[1693548596323,3.77714493,26065.0,26064.0,0.21869815]
[1693548596496,3.77774493,26065.0,26064.0,0.21869815]
[1693548596745,3.77846493,26065.0,26064.0,0.21869815]
[1693548596942,4.08989505,26065.0,26064.0,0.21869815]
[1693548597149,4.09007505,26065.0,26064.0,0.21869815]
[1693548597347,4.08977505,26065.0,26064.0,0.21869815]
[1693548597622,4.08983505,26065.0,26064.0,0.21869815]
[1693548597974,4.08989505,26065.0,26064.0,0.21869815]
[1693548598150,4.08995505,26065.0,26064.0,0.21869815]
[1693548598352,4.08989505,26065.0,26064.0,0.21869815]
[1693548598556,4.08947505,26065.0,26064.0,0.21869815]
[1693548598755,4.08941505,26065.0,26064.0,0.21869815]
[1693548599100,4.08821505,26065.0,26064.0,0.21869815]
[1693548599278,4.08827505,26065.0,26064.0,0.21869815]
[1693548599687,4.08989505,26065.0,26064.0,0.21869815]
[1693548599884,3.77888493,26065.0,26064.0,0.21869815]
[1693548600050,3.77852493,26065.0,26064.0,0.21869815]
[1693548600246,3.71888493,26065.0,26064.0,0.21869815]
[1693548600474,3.71756493,26065.0,26064.0,0.21869815]
[1693548600677,3.72194493,26065.0,26064.0,0.21869815]
[1693548600873,3.72260493,26065.0,26064.0,0.21869815]
[1693548601075,3.72194493,26065.0,26064.0,0.21869815]
[1693548601298,3.72266493,26065.0,26064.0,0.21869815]
[1693548601473,3.72026493,26065.0,26064.0,0.21869815]
[1693548601674,3.72008493,26065.0,26064.0,0.21869815]
[1693548601903,3.72086493,26065.0,26064.0,0.21869815]
[1693548602111,3.72068493,26065.0,26064.0,0.21869815]
[1693548602315,3.72074493,26065.0,26064.0,0.21869815]
[1693548602731,3.72044493,26065.0,26064.0,0.21869815]
[1693548602935,3.72050493,26065.0,26064.0,0.21869815]
[1693548603147,3.72068493,26065.0,26064.0,0.21869815]
[1693548603859,3.72110493,26065.0,26064.0,0.21869815]
[1693548604445,3.72128493,26065.0,26064.0,0.21869815]
[1693548604643,3.72158493,26065.0,26064.0,0.21869815]
[1693548604945,3.72038493,26065.0,26064.0,0.21869815]
[1693548605464,3.72032493,26065.0,26064.0,0.21869815]
[1693548605660,3.72068493,26065.0,26064.0,0.21869815]
[1693548605893,3.71996493,26065.0,26064.0,0.21869815]
[1693548606074,3.71954493,26065.0,26064.0,0.21869815]
[1693548606244,3.71948493,26065.0,26064.0,0.21869815]
[1693548606449,3.71942493,26065.0,26064.0,0.21869815]
[1693548606651,3.71948493,26065.0,26064.0,0.21869815]
[1693548607281,3.71936493,26065.0,26064.0,0.21869815]
[1693548607618,3.72020493,26065.0,26064.0,0.21869815]
[1693548607772,3.71972493,26065.0,26064.0,0.21869815]
[1693548608490,3.71978493,26065.0,26064.0,0.21869815]
[1693548608875,3.71894493,26065.0,26064.0,0.21869815]
[1693548609250,3.72008493,26065.0,26064.0,0.21869815]
[1693548609482,3.71996493,26065.0,26064.0,0.21869815]
[1693548609683,3.71870493,26065.0,26064.0,0.21869815]
[1693548610024,3.71852493,26065.0,26064.0,0.21869815]
[1693548610227,3.71870493,26065.0,26064.0,0.21869815]
[1693548610433,3.71864493,26065.0,26064.0,0.21869815]
[1693548610638,3.71846493,26065.0,26064.0,0.21869815]
[1693548610834,3.71852493,26065.0,26064.0,0.21869815]
[1693548611030,3.72356493,26065.0,26064.0,0.21869815]
[1693548611385,3.72278493,26065.0,26064.0,0.21869815]
[1693548611576,3.72650493,26065.0,26064.0,0.21869815]
[1693548611715,3.72668493,26065.0,26064.0,0.21869815]
[1693548611915,3.72632493,26065.0,26064.0,0.21869815]
[1693548612283,3.72482493,26065.0,26064.0,0.21869815]
[1693548612534,3.72488493,26065.0,26064.0,0.21869815]
[1693548612941,3.94841572,26065.0,26064.0,0.21869815]
[1693548613171,3.94607572,26065.0,26064.0,0.21869815]
[1693548613683,3.94043572,26065.0,26064.0,0.21869815]
[1693548613913,3.94067572,26065.0,26064.0,0.21869815]
[1693548614267,3.94049572,26065.0,26064.0,0.21869815]
[1693548614431,3.93935572,26065.0,26064.0,0.21869815]
[1693548614640,3.93959572,26065.0,26064.0,0.21869815]
[1693548614843,3.94007572,26065.0,26064.0,0.21869815]
[1693548615088,3.93971572,26065.0,26064.0,0.21869815]
[1693548615327,3.93851572,26065.0,26064.0,0.21869815]
[1693548615508,3.94451572,26065.0,26064.0,0.21869815]
[1693548615853,3.94427572,26065.0,26064.0,0.21869815]
[1693548616046,3.94283572,26065.0,26064.0,0.21869815]
[1693548616256,3.94355572,26065.0,26064.0,0.21869815]
[1693548616463,3.94313572,26065.0,26064.0,0.21869815]
[1693548616666,3.94307572,26065.0,26064.0,0.21869815]
[1693548616889,3.94295572,26065.0,26064.0,0.21869815]
[1693548617230,3.94301572,26065.0,26064.0,0.21869815]
[1693548617588,3.94319572,26065.0,26064.0,0.21869815]
[1693548617991,3.94313572,26065.0,26064.0,0.21869815]
[1693548618195,3.94265572,26065.0,26064.0,0.21869815]
[1693548618411,3.94229572,26065.0,26064.0,0.21869815]
[1693548618578,1.83648263,26065.0,26064.0,0.21869815]
[1693548618791,1.28794782,26065.0,26064.0,0.79420415]
[1693548618992,1.30794782,26065.0,26064.0,1.94521615]
[1693548621228,1.32794782,26065.0,26064.0,1.36971015]
[1693548621428,1.28794782,26065.0,26064.0,1.36971015]
[1693548621630,1.30794782,26065.0,26064.0,1.36971015]
[1693548622105,1.32794782,26065.0,26064.0,1.36971015]
[1693548623262,1.01706506,26065.0,26064.0,1.36971015]
[1693548629151,1.01706506,26065.0,26064.0,0.79420415]
[1693548629534,1.01706506,26065.0,26064.0,1.36971015]
[1693548629535,0.99706506,26065.0,26064.0,1.36971015]
[1693548630616,0.99706506,26065.0,26064.0,1.94521615]
[1693548631649,0.93706506,26065.0,26064.0,1.94521615]
[1693548632049,1.17216758,26065.0,26064.0,1.94521615]
[1693548632343,0.89598361,26065.0,26064.0,2.36341615]
[1693548632544,1.00013336,26065.0,26064.0,2.36341615]
[1693548632751,1.00013336,26065.0,26064.0,2.37871982]
[1693548632925,0.30013336,26065.0,26064.0,2.37871982]
[1693548633169,0.48418462,26065.0,26064.0,2.37871982]
[1693548633391,0.41418462,26065.0,26064.0,2.37271982]
[1693548633597,0.41418462,26065.0,26064.0,2.38171982]
[1693548633787,0.41418462,26065.0,26064.0,2.37671982]
[1693548634190,0.18605126,26065.0,26064.0,2.39071982]
[1693548634411,0.18805126,26065.0,26064.0,2.40771982]
[1693548635313,0.32603224,26065.0,26064.0,2.40771982]
[1693548636989,0.14198098,26065.0,26064.0,2.40771982]
[1693548639958,0.23391656,26065.0,26064.0,2.40771982]
[1693548640332,0.23391656,26065.0,26064.0,2.43877258]
[1693548642322,0.09593558,26065.0,26064.0,2.43877258]
[1693548648772,0.004,26065.0,26064.0,2.43877258]
[1693548658298,0.09593558,26065.0,26064.0,2.43877258]
[1693548667207,0.22160444,26065.0,26064.0,2.43877258]
[1693548669349,0.35958542,26065.0,26064.0,2.43877258]
[1693548671238,0.26764984,26065.0,26064.0,2.43877258]
[1693548673106,0.4517011,26065.0,26064.0,2.43877258]
[1693548674126,0.31372012,26065.0,26064.0,2.43877258]
[1693548675171,0.54385348,26065.0,26064.0,2.43877258]
[1693548675380,0.54385348,26065.0,26064.0,2.82585936]
[1693548675590,0.18805126,26065.0,26064.0,2.82585936]
[1693548676116,0.41818462,26065.0,26064.0,2.82585936]
[1693548677281,0.23413336,26065.0,26064.0,2.82585936]
[1693548677740,0.23413336,26065.0,26064.0,2.43877258]
[1693548677927,0.23413336,26065.0,26064.0,2.32057258]
[1693548682377,0.93413336,26065.0,26064.0,2.32057258]
[1693548689608,0.704,26065.0,26064.0,2.32057258]
[1693548689815,0.82967263,26065.0,26064.0,2.32057258]
[1693548690356,1.09875226,26065.0,26064.0,2.32057258]
[1693548690565,1.09875226,26065.0,26064.0,0.59405458]
[1693548691151,1.37493623,26065.0,26064.0,0.59405458]
[1693548691731,1.37493623,26065.0,26064.0,1.16956058]
[1693548692759,1.37493623,26065.0,26064.0,0.86956058]
[1693548692965,1.37493623,26065.0,26064.0,0.29405458]
[1693548693596,1.1747966,26065.0,26064.0,0.29405458]
[1693548693752,1.41510214,26065.0,26064.0,0.29405458]
[1693548693955,1.41558214,26065.0,26064.0,0.29405458]
[1693548694162,1.41402214,26065.0,26064.0,0.29405458]
[1693548694387,1.41384214,26065.0,26064.0,0.29405458]
[1693548694586,1.41498214,26065.0,26064.0,0.26300182]
[1693548694765,1.41462214,26065.0,26064.0,0.26300182]
[1693548695147,1.41348214,26065.0,26064.0,0.26300182]
[1693548695422,1.41264214,26065.0,26064.0,0.26300182]
[1693548695763,1.41132214,26065.0,26064.0,0.26300182]
[1693548695943,1.41102214,26065.0,26064.0,0.26300182]
[1693548696162,1.41054214,26065.0,26064.0,0.26300182]
[1693548696395,1.34550214,26065.0,26064.0,0.26300182]
[1693548700368,1.06931817,26065.0,26064.0,0.26300182]
[1693548700596,1.34550214,26065.0,26064.0,0.26300182]
[1693548701828,1.06931817,26065.0,26064.0,0.26300182]
[1693548702054,1.34550214,26065.0,26064.0,0.26300182]
[1693548702411,1.06931817,26065.0,26064.0,0.26300182]
[1693548707634,1.06931817,26065.0,26064.0,0.83850782]
[1693548714693,1.06931817,26065.0,26064.0,1.41401382]
[1693548719743,1.06931817,26065.0,26064.0,1.98951982]
[1693548720516,0.82967263,26065.0,26064.0,1.98951982]
[1693548720830,1.0596238,26065.0,26064.0,1.98951982]
[1693548723980,3.20099219,26065.0,26064.0,0.26300182]
[1693548724185,3.32714128,26065.0,26064.0,0.26300182]
[1693548724415,3.05577216,26065.0,26064.0,0.26300182]
[1693548724619,2.91505138,26065.0,26064.0,0.26300182]
[1693548724833,2.95977027,26065.0,26064.0,0.26300182]
[1693548724985,3.27653121,26065.0,26064.0,0.24500182]
[1693548725386,3.30781121,26065.0,26064.0,0.23100182]
[1693548725591,3.06253138,26065.0,26064.0,0.22800182]
[1693548725766,3.13138863,26065.0,26064.0,0.23000182]
[1693548725979,3.12067138,26065.0,26064.0,0.23300182]
[1693548726180,3.14354769,26065.0,26064.0,0.23100182]
[1693548726548,3.17988769,26065.0,26064.0,0.23400182]
[1693548726751,3.17844769,26065.0,26064.0,0.23400182]
[1693548726977,3.36165575,26065.0,26064.0,0.23400182]
[1693548727257,3.36153575,26065.0,26064.0,0.23400182]
[1693548727455,3.12987138,26065.0,26064.0,0.23400182]
[1693548727683,3.12981138,26065.0,26064.0,0.23400182]
[1693548727890,3.17778359,26065.0,26064.0,0.23400182]
[1693548728115,3.17802359,26065.0,26064.0,0.23400182]
[1693548728302,3.17796359,26065.0,26064.0,0.23400182]
[1693548728505,2.90159962,26065.0,26064.0,0.23400182]
[1693548728628,2.90141962,26065.0,26064.0,0.23400182]
[1693548728824,3.13610224,26065.0,26064.0,0.23400182]
[1693548729030,2.90087962,26065.0,26064.0,0.23400182]
[1693548729420,2.90021962,26065.0,26064.0,0.23400182]
[1693548729570,3.16328048,26065.0,26064.0,0.23400182]
[1693548729780,3.16286048,26065.0,26064.0,0.23400182]
[1693548729981,2.90003962,26065.0,26064.0,0.23400182]
[1693548730135,2.89979962,26065.0,26064.0,0.23400182]
[1693548730334,3.13313095,26065.0,26064.0,0.23400182]
[1693548730613,3.13283095,26065.0,26064.0,0.23400182]
[1693548730783,3.13271095,26065.0,26064.0,0.23400182]
[1693548731102,3.13241095,26065.0,26064.0,0.23400182]
[1693548731308,3.12725095,26065.0,26064.0,0.23400182]
[1693548731509,1.96770295,26065.0,26064.0,0.23400182]
[1693548731646,2.00980575,26065.0,26064.0,0.23400182]
[1693548731853,2.12248062,26065.0,26064.0,0.23400182]
[1693548732064,2.12332062,26065.0,26064.0,0.23400182]
[1693548732263,2.12379121,26065.0,26064.0,0.23400182]
[1693548732501,2.1239981,26065.0,26064.0,0.23400182]
[1693548732732,2.07780493,26065.0,26064.0,0.23400182]
[1693548733151,2.07792493,26065.0,26064.0,0.23400182]
[1693548733387,2.12336033,26065.0,26064.0,0.23400182]
[1693548733585,2.12342033,26065.0,26064.0,0.23400182]
[1693548733882,1.84738614,26065.0,26064.0,0.23400182]
[1693548734060,1.84744614,26065.0,26064.0,0.23400182]
[1693548734423,1.84768614,26065.0,26064.0,0.23400182]
[1693548734834,1.84786614,26065.0,26064.0,0.23400182]
[1693548735034,1.84792614,26065.0,26064.0,0.23400182]
[1693548735236,1.84870614,26065.0,26064.0,0.23400182]
[1693548735397,1.54294614,26065.0,26064.0,0.23400182]
[1693548735604,1.54300614,26065.0,26064.0,0.23400182]
[1693548736195,1.54318614,26065.0,26064.0,0.23400182]
[1693548736701,1.54312614,26065.0,26064.0,0.23400182]
[1693548736899,1.54318614,26065.0,26064.0,0.23400182]
[1693548737102,1.54258614,26065.0,26064.0,0.23400182]
[1693548737299,1.54348614,26065.0,26064.0,0.23400182]
[1693548737901,1.54360614,26065.0,26064.0,0.23400182]
[1693548738255,1.54450614,26065.0,26064.0,0.23400182]
[1693548738471,1.54498614,26065.0,26064.0,0.23400182]
[1693548738880,1.54504614,26065.0,26064.0,0.23400182]
[1693548739192,1.54510614,26065.0,26064.0,0.23400182]
[1693548739442,1.54504614,26065.0,26064.0,0.23400182]
[1693548739849,1.54510614,26065.0,26064.0,0.23400182]
[1693548740063,1.54492614,26065.0,26064.0,0.23400182]
[1693548740194,1.54648614,26065.0,26064.0,0.23400182]
[1693548740405,1.55038614,26065.0,26064.0,0.23400182]
[1693548740656,1.55050614,26065.0,26064.0,0.23400182]
[1693548740829,1.55026614,26065.0,26064.0,0.23400182]
[1693548741302,1.55068614,26065.0,26064.0,0.23400182]
[1693548741505,1.55038614,26065.0,26064.0,0.23400182]
[1693548741709,1.55014614,26065.0,26064.0,0.23400182]
[1693548742113,1.55020614,26065.0,26064.0,0.23400182]
[1693548742313,1.55038614,26065.0,26064.0,0.23400182]
[1693548742515,1.55032614,26065.0,26064.0,0.23400182]
[1693548742714,1.55080614,26065.0,26064.0,0.23400182]
[1693548743415,1.55086614,26065.0,26064.0,0.23400182]
[1693548743626,1.55188614,26065.0,26064.0,0.23400182]
[1693548743735,1.55224614,26065.0,26064.0,0.23400182]
[1693548743937,1.55230614,26065.0,26064.0,0.23400182]
[1693548744159,1.55224614,26065.0,26064.0,0.23400182]
[1693548744358,1.55254614,26065.0,26064.0,0.23400182]
[1693548744565,1.55272614,26065.0,26064.0,0.23400182]
[1693548744767,1.55272614,26065.0,26064.0,0.21145767]
[1693548744974,1.55272614,26065.0,26064.0,0.23037543]
[1693548745199,1.55284614,26065.0,26064.0,0.23037543]
[1693548745423,1.55272614,26065.0,26064.0,0.23037543]
[1693548745937,1.55302614,26065.0,26064.0,0.23037543]
[1693548746137,1.55200614,26065.0,26064.0,0.23037543]
[1693548746358,1.55206614,26065.0,26064.0,0.23037543]
[1693548746531,1.55170614,26065.0,26064.0,0.23037543]
[1693548746732,1.55152614,26065.0,26064.0,0.23037543]
[1693548746936,1.66984614,26065.0,26064.0,0.23037543]
[1693548747139,1.66918614,26065.0,26064.0,0.23037543]
[1693548747335,1.66930614,26065.0,26064.0,0.23037543]
[1693548747511,1.97957998,26065.0,26064.0,0.23037543]
[1693548747716,1.98071998,26065.0,26064.0,0.23037543]
[1693548747902,1.98053998,26065.0,26064.0,0.23037543]
[1693548748101,1.98041998,26065.0,26064.0,0.23037543]
[1693548748302,1.98053998,26065.0,26064.0,0.23037543]
[1693548748515,1.98119998,26065.0,26064.0,0.23037543]
[1693548748717,1.98113998,26065.0,26064.0,0.23037543]
[1693548748932,1.98119998,26065.0,26064.0,0.23037543]
[1693548749135,1.98131998,26065.0,26064.0,0.23037543]
[1693548749337,1.98197998,26065.0,26064.0,0.23037543]
[1693548749690,1.98209998,26065.0,26064.0,0.23037543]
[1693548749924,1.98173998,26065.0,26064.0,0.23037543]
[1693548750100,1.98185998,26065.0,26064.0,0.23037543]
[1693548750258,1.98179998,26065.0,26064.0,0.23037543]
[1693548750597,1.98167998,26065.0,26064.0,0.23037543]
[1693548750809,1.98179998,26065.0,26064.0,0.23037543]
[1693548751101,1.98233998,26065.0,26064.0,0.23037543]
[1693548751340,2.55782398,26065.0,26064.0,0.23037543]
[1693548751559,2.55758398,26065.0,26064.0,0.23037543]
[1693548751701,2.55752398,26065.0,26064.0,0.23037543]
[1693548751904,2.55746398,26065.0,26064.0,0.23037543]
[1693548752195,2.55734398,26065.0,26064.0,0.23037543]
[1693548752454,2.55638398,26065.0,26064.0,0.23037543]
[1693548752695,1.98131998,26065.0,26064.0,0.23037543]
[1693548752916,1.67074614,26065.0,26064.0,0.23037543]
[1693548753110,1.67068614,26065.0,26064.0,0.23037543]
[1693548753301,1.98107998,26065.0,26064.0,0.23037543]
[1693548753549,1.98101998,26065.0,26064.0,0.23037543]
[1693548753668,1.98065998,26065.0,26064.0,0.23037543]
[1693548753871,1.98059998,26065.0,26064.0,0.23037543]
[1693548754070,1.98035998,26065.0,26064.0,0.23037543]
[1693548754274,1.98053998,26065.0,26064.0,0.23037543]
[1693548754473,1.98047998,26065.0,26064.0,0.23037543]
[1693548754682,1.98041998,26065.0,26064.0,0.23037543]
[1693548754883,1.98215998,26065.0,26064.0,0.23037543]
[1693548755268,1.98149998,26065.0,26064.0,0.04037543]
[1693548755474,1.67116614,26065.0,26064.0,0.04037543]
[1693548755625,1.67086614,26065.0,26064.0,0.04037543]
[1693548755824,1.67080614,26065.0,26064.0,0.04037543]
[1693548756023,1.67068614,26065.0,26064.0,0.04037543]
[1693548756220,1.67098614,26065.0,26064.0,0.04037543]
[1693548756436,1.67140614,26065.0,26064.0,0.04037543]
[1693548756599,2.24683014,26065.0,26064.0,0.04037543]
[1693548756807,2.24671014,26065.0,26064.0,0.04037543]
[1693548756996,2.24689014,26065.0,26064.0,0.04037543]
[1693548757200,2.24611014,26065.0,26064.0,0.04037543]
[1693548757399,2.24623014,26065.0,26064.0,0.04037543]
[1693548757802,2.24611014,26065.0,26064.0,0.04037543]
[1693548758047,2.24581014,26065.0,26064.0,0.23037543]
[1693548758308,2.55722398,26065.0,26064.0,0.23037543]
[1693548758511,2.55704398,26065.0,26064.0,0.23037543]
[1693548758717,2.55698398,26065.0,26064.0,0.23037543]
[1693548758916,2.55692398,26065.0,26064.0,0.23037543]
[1693548759166,2.55698398,26065.0,26064.0,0.23037543]
[1693548759343,2.55728398,26065.0,26064.0,0.23037543]
[1693548759545,2.55716398,26065.0,26064.0,0.23037543]
[1693548759741,2.55740398,26065.0,26064.0,0.23037543]
[1693548759973,2.55728398,26065.0,26064.0,0.23037543]
[1693548760222,2.55716398,26065.0,26064.0,0.23037543]
[1693548760397,2.55710398,26065.0,26064.0,0.23037543]
[1693548761162,2.55716398,26065.0,26064.0,0.23037543]
[1693548761567,2.55722398,26065.0,26064.0,0.23037543]
[1693548761886,2.55746398,26065.0,26064.0,0.23037543]
[1693548762095,2.55752398,26065.0,26064.0,0.23037543]
[1693548762264,2.55746398,26065.0,26064.0,0.23037543]
[1693548762651,2.55740398,26065.0,26064.0,0.23037543]
[1693548762780,2.55746398,26065.0,26064.0,0.23037543]
[1693548763406,2.55764398,26065.0,26064.0,0.23037543]
[1693548763626,1.98203998,26065.0,26064.0,0.23037543]
[1693548763977,1.98209998,26065.0,26064.0,0.23037543]
[1693548764158,1.98215998,26065.0,26064.0,0.23037543]
[1693548764333,1.98245998,26065.0,26064.0,0.23037543]
[1693548764535,1.98209998,26065.0,26064.0,0.23037543]
[1693548764768,1.98203998,26065.0,26064.0,0.23037543]
[1693548764970,1.98209998,26065.0,26064.0,0.23037543]
[1693548765166,1.98233998,26065.0,26064.0,0.23037543]
[1693548765330,1.98221998,26065.0,26064.0,0.23037543]
[1693548765532,1.98215998,26065.0,26064.0,0.23037543]
[1693548765770,1.98233998,26065.0,26064.0,0.23037543]
[1693548766093,1.98221998,26065.0,26064.0,0.23037543]
[1693548766227,1.98227998,26065.0,26064.0,0.23037543]
[1693548766439,1.98251998,26065.0,26064.0,0.23037543]
[1693548766636,1.98233998,26065.0,26064.0,0.23037543]
[1693548767000,1.98221998,26065.0,26064.0,0.23037543]
[1693548767161,1.98227998,26065.0,26064.0,0.23037543]
[1693548767366,1.98251998,26065.0,26064.0,0.23037543]
[1693548767561,1.98233998,26065.0,26064.0,0.23037543]
[1693548767769,1.98251998,26065.0,26064.0,0.23037543]
[1693548768012,1.98197998,26065.0,26064.0,0.23037543]
[1693548768243,1.98179998,26065.0,26064.0,0.23037543]
[1693548768463,1.98197998,26065.0,26064.0,0.23037543]
[1693548768669,1.97639998,26065.0,26064.0,0.23037543]
[1693548768823,1.96997998,26065.0,26064.0,0.23037543]
[1693548769020,1.90325998,26065.0,26064.0,0.23037543]
[1693548776167,1.96787998,26065.0,26064.0,0.23037543]
[1693548776366,1.96793998,26065.0,26064.0,0.23037543]
[1693548776585,1.96835998,26065.0,26064.0,0.23037543]
[1693548776783,1.90325998,26065.0,26064.0,0.23037543]
[1693548777437,1.96817998,26065.0,26064.0,0.23037543]
[1693548777791,1.96865998,26065.0,26064.0,0.23037543]
[1693548778034,1.90325998,26065.0,26064.0,0.23037543]
[1693548778177,1.96883998,26065.0,26064.0,0.23037543]
[1693548778377,1.90325998,26065.0,26064.0,0.23037543]
[1693548780124,1.96847998,26065.0,26064.0,0.23037543]
[1693548780464,1.90325998,26065.0,26064.0,0.23037543]
[1693548781305,1.96907998,26065.0,26064.0,0.23037543]
[1693548781624,1.96913998,26065.0,26064.0,0.23037543]
[1693548781827,1.96919998,26065.0,26064.0,0.23037543]
[1693548782071,1.96925998,26065.0,26064.0,0.23037543]
[1693548782272,1.96937998,26065.0,26064.0,0.23037543]
[1693548782725,1.90325998,26065.0,26064.0,0.23037543]
[1693548783664,1.88325998,26065.0,26064.0,0.23037543]
[1693548783868,1.90325998,26065.0,26064.0,0.23037543]
[1693548786592,0.85406803,26065.0,26064.0,1.38138743]
[1693548786799,0.66042803,26065.0,26064.0,1.38138743]
[1693548787004,0.70042803,26065.0,26064.0,1.38138743]
[1693548788733,0.91353602,26065.0,26064.0,1.38138743]
[1693548788956,0.91353602,26065.0,26064.0,0.80588143]
[1693548790048,0.91353602,26065.0,26064.0,0.23037543]
[1693548799375,0.91401241,26065.0,26064.0,0.23037543]
[1693548804835,0.91401241,26065.0,26064.0,0.48459543]
[1693548805963,0.70090442,26065.0,26064.0,0.48459543]
[1693548812646,0.70090442,26065.0,26064.0,0.46929176]
[1693548812979,0.70090442,26065.0,26064.0,0.48445745]
[1693548817246,0.9670592,26065.0,26064.0,0.48445745]
[1693548831449,1.27757304,26065.0,26064.0,0.48445745]
[1693548833355,0.9208438,26065.0,26064.0,0.48445745]
[1693548833593,1.28025266,26065.0,26064.0,0.48445745]
[1693548835253,0.96929205,26065.0,26064.0,0.48445745]
[1693548840212,1.28025266,26065.0,26064.0,0.48445745]
[1693548840828,0.96929205,26065.0,26064.0,0.48445745]
[1693548841028,1.28025266,26065.0,26064.0,0.48445745]
[1693548841229,0.96929205,26065.0,26064.0,0.48445745]
[1693548845597,0.96929205,26065.0,26064.0,1.05996345]
[1693548853417,0.96929205,26065.0,26064.0,0.48445745]
[1693548854598,1.03625205,26065.0,26064.0,0.48445745]
[1693548854801,1.03571205,26065.0,26064.0,0.48445745]
[1693548855199,1.03559205,26065.0,26064.0,0.48445745]
[1693548855397,0.96929205,26065.0,26064.0,0.48445745]
[1693548857749,2.32820344,26065.0,26064.0,0.48445745]
[1693548857971,2.32736344,26065.0,26064.0,0.48445745]
[1693548858180,2.32676344,26065.0,26064.0,0.48445745]
[1693548858404,2.90230744,26065.0,26064.0,0.48445745]
[1693548858609,2.90050744,26065.0,26064.0,0.48445745]
[1693548858783,2.90014744,26065.0,26064.0,0.48445745]
[1693548858984,2.89996744,26065.0,26064.0,0.48445745]
[1693548859192,2.89990744,26065.0,26064.0,0.48445745]
[1693548859391,2.89978744,26065.0,26064.0,0.48445745]
[1693548859607,2.89996744,26065.0,26064.0,0.48445745]
[1693548859809,2.89522744,26065.0,26064.0,0.48445745]
[1693548860011,2.89504744,26065.0,26064.0,0.48445745]
[1693548860214,2.89486744,26065.0,26064.0,0.48445745]
[1693548860417,2.89432744,26065.0,26064.0,0.48445745]
[1693548860592,2.89354744,26065.0,26064.0,0.48445745]
[1693548860794,2.89324744,26065.0,26064.0,0.48445745]
[1693548860993,2.89288744,26065.0,26064.0,0.48445745]
[1693548861196,2.89264744,26065.0,26064.0,0.48445745]
[1693548861419,2.89222744,26065.0,26064.0,0.48445745]
[1693548861576,2.89192744,26065.0,26064.0,0.48445745]
[1693548861779,2.89180744,26065.0,26064.0,0.48445745]
[1693548861984,2.89132744,26065.0,26064.0,0.48445745]
[1693548862186,2.89060744,26065.0,26064.0,0.48445745]
[1693548862385,2.89084744,26065.0,26064.0,0.48445745]
[1693548862595,2.89048744,26065.0,26064.0,0.48445745]
[1693548862796,2.88940744,26065.0,26064.0,0.48445745]
[1693548863115,2.88832744,26065.0,26064.0,0.48445745]
[1693548863322,2.88814744,26065.0,26064.0,0.48445745]
[1693548863661,2.88754744,26065.0,26064.0,0.48445745]
[1693548863862,2.88718744,26065.0,26064.0,0.48445745]
[1693548864063,2.88700744,26065.0,26064.0,0.48445745]
[1693548864694,2.88640744,26065.0,26064.0,0.48445745]
[1693548864890,2.24282344,26065.0,26064.0,0.48445745]
[1693548865716,2.30738344,26065.0,26064.0,0.48445745]
[1693548865896,2.24282344,26065.0,26064.0,0.48445745]
[1693548866100,1.66733944,26065.0,26064.0,0.48445745]
[1693548866954,1.78553944,26065.0,26064.0,0.48445745]
[1693548871337,1.47457883,26065.0,26064.0,0.48445745]
[1693548873128,1.47457883,26065.0,26064.0,1.63546945]
[1693548873129,0.70313727,26065.0,26064.0,1.63546945]
[1693548873324,0.70313727,26065.0,26064.0,2.21097545]
[1693548879872,0.30859727,26065.0,26064.0,1.63546945]
[1693548884696,1.00859727,26065.0,26064.0,1.63546945]
[1693548889444,1.25798297,26065.0,26064.0,1.63546945]
[1693548890149,1.76326975,26065.0,26064.0,0.48445745]
[1693548890319,1.84108975,26065.0,26064.0,0.48445745]
[1693548890664,2.15073036,26065.0,26064.0,0.48445745]
[1693548890818,2.14983036,26065.0,26064.0,0.48445745]
[1693548891070,2.14947036,26065.0,26064.0,0.48445745]
[1693548891272,2.15013036,26065.0,26064.0,0.48445745]
[1693548891473,2.14959036,26065.0,26064.0,0.48445745]
[1693548891976,2.14923036,26065.0,26064.0,0.48445745]
[1693548892268,2.14821036,26065.0,26064.0,0.48445745]
[1693548892473,2.14917036,26065.0,26064.0,0.48445745]
[1693548892700,2.14875036,26065.0,26064.0,0.48445745]
[1693548892810,2.14797036,26065.0,26064.0,0.48445745]
[1693548893010,2.14827036,26065.0,26064.0,0.48445745]
[1693548893314,2.14713036,26065.0,26064.0,0.48445745]
[1693548893519,2.14689036,26065.0,26064.0,0.48445745]
[1693548893738,2.14701036,26065.0,26064.0,0.48445745]
[1693548893965,2.14653036,26065.0,26064.0,0.48445745]
[1693548894165,2.14665036,26065.0,26064.0,0.48445745]
[1693548894364,2.14581036,26065.0,26064.0,0.48445745]
[1693548894569,2.14617036,26065.0,26064.0,0.48445745]
[1693548894784,2.14611036,26065.0,26064.0,0.48445745]
[1693548894984,2.14551036,26065.0,26064.0,0.48445745]
[1693548895189,2.14545036,26065.0,26064.0,0.48445745]
[1693548895367,2.14485036,26065.0,26064.0,0.48445745]
[1693548895569,2.14461036,26065.0,26064.0,0.48445745]
[1693548895895,2.14551036,26065.0,26064.0,0.48445745]
[1693548896055,2.14533036,26065.0,26064.0,0.48445745]
[1693548896258,2.14437036,26065.0,26064.0,0.48445745]
[1693548896517,2.14425036,26065.0,26064.0,0.48445745]
[1693548896721,2.14413036,26065.0,26064.0,0.48445745]
[1693548896930,2.14335036,26065.0,26064.0,0.48445745]
[1693548897106,2.14395036,26065.0,26064.0,0.48445745]
[1693548897248,2.14371036,26065.0,26064.0,0.48445745]
[1693548897444,2.14329036,26065.0,26064.0,0.48445745]
[1693548897687,2.14251036,26065.0,26064.0,0.48445745]
[1693548898030,2.14293036,26065.0,26064.0,0.48445745]
[1693548898311,2.14263036,26065.0,26064.0,0.48445745]
[1693548898529,2.14185036,26065.0,26064.0,0.48445745]
[1693548898646,2.14233036,26065.0,26064.0,0.48445745]
[1693548898850,2.14281036,26065.0,26064.0,0.48445745]
[1693548899053,2.14323036,26065.0,26064.0,0.48445745]
[1693548899256,2.14167036,26065.0,26064.0,0.48445745]
[1693548899456,2.14185036,26065.0,26064.0,0.48445745]
[1693548899667,2.14197036,26065.0,26064.0,0.48445745]
[1693548899868,2.14215036,26065.0,26064.0,0.48445745]
[1693548900082,2.14203036,26065.0,26064.0,0.48445745]
[1693548900279,2.14251036,26065.0,26064.0,0.48445745]
[1693548900534,2.14113036,26065.0,26064.0,0.48445745]
[1693548900705,2.14077036,26065.0,26064.0,0.48445745]
[1693548900910,2.14101036,26065.0,26064.0,0.48445745]
[1693548901111,2.14149036,26065.0,26064.0,0.48445745]
[1693548901289,2.14077036,26065.0,26064.0,0.48445745]
[1693548901480,2.14041036,26065.0,26064.0,0.48445745]
[1693548901680,2.13987036,26065.0,26064.0,0.48445745]
[1693548901887,2.14029036,26065.0,26064.0,0.48445745]
[1693548902085,2.14011036,26065.0,26064.0,0.48445745]